Cogmind - Beta 12 @@@ ROGUE MODE // 2023.04.13 @ 09:33:59 Player: Mr Goldstein Result: Destroyed by S-10 Pest with Light Assault Rifle Performance ------------- Evolutions (1) 500 Regions Visited (2) 400 Robots Destroyed (0) 0 Value Destroyed (0) 0 Prototype IDs (0) 0 Alien Tech Used (0) 0 Bonus (3650) 3650 TOTAL SCORE: 4550 Bonus ------- Fragile Parts 250 Gauntlet 750 No Salvage 250 Pure Core 500 Scavenger 1000 Simple Hacker 200 Unstable Evolution 500 Pacifist 200 Cogmind --------- Core Integrity 0/400 Matter 200/300 Energy 99/100 System Corruption 2% Temperature Cool (0) Movement Core (50) Location -9/Materials Parts ------- > --- POWER (1) -------- (None) > --- PROPULSION (3) --- (None) > --- UTILITY (3) ------ (None) > --- WEAPON (2) ------- (None) > --- INVENTORY (0) ---- (None) Peak State ------------ > --- POWER ------------ Light Ion Engine > --- PROPULSION ------- (None) > --- UTILITY ---------- (None) > --- WEAPON ----------- Improved Datajack Improved Datajack > --- INVENTORY -------- (None) [Rating: 7] Favorites ----------- Power Light Ion Engine Engine Light Ion Engine Propulsion None Utility None Weapon Improved Datajack Special Melee Weapon Improved Datajack Build | -11 -10 -9 ------- Run | Jun Mat Mat Slots Evolved 2 | . . 2 Power . | . . . Propulsion 1 | . . 1 Utility 1 | . . 1 Weapon . | . . . Parts Attached 3 | 1 . 2 Power 1 | 1 . . Engine 1 | 1 . . Core . | . . . Reactor . | . . . Propulsion . | . . . Treads . | . . . Leg . | . . . Wheel . | . . . Hover . | . . . Flight . | . . . Utility . | . . . Device . | . . . Storage . | . . . Processor . | . . . Hackware . | . . . Protection . | . . . Artifact . | . . . Weapon 2 | . . 2 Energy Gun . | . . . Energy Cannon . | . . . Ballistic Gun . | . . . Ballistic Cannon . | . . . Launcher . | . . . Special Weapon . | . . . Impact Weapon . | . . . Slashing Weapon . | . . . Piercing Weapon . | . . . Special Melee Weapon 2 | . . 2 Unidentified Prototypes . | . . . Parts Lost 1 | . . 1 Power 1 | . . 1 Propulsion . | . . . Utility . | . . . Weapon . | . . . Highest Loss Streak 1 | . . 1 To Critical Strikes . | . . . Average Slot Usage (%) 8 | . 14 6 Engine 7 | . 14 5 Naked Turns 79 | . . 79 Heaviest Build 4 | 3 3 4 Greatest Support 3 | 3 3 3 Greatest Overweight (x) 1 | . . 1 Average Overweight (x) . | . . . Largest Inventory Capacity . | . . . Average Capacity . | . . . Most Carried . | . . . Average Carried . | . . . Final Capacity . | . . . Final Carried . | . . . Class Distribution -------------------- 100% | Mutant Dominant Class ---------------- Mutant | -10/Materials Mutant | -9/Materials Resources | -11 -10 -9 ----------- Run | Jun Mat Mat Matter Collected 65 | 65 . . Remotely . | . . . Salvage Created . | . . . Parts . | . . . Haulers Intercepted . | . . . Recyclers Shooed . | . . . Parts Field Recycled . | . . . Retrieved Matter . | . . . Parts Self-Destructed . | . . . Prevented . | . . . Kills | -11 -10 -9 ------- Run | Jun Mat Mat Combat Hostiles Destroyed . | . . . Classes Destroyed . | . . . Best Kill Streak . | . . . Combat Bots Only . | . . . Max Kills in Single Turn . | . . . Gunslinging . | . . . Exploded . | . . . Melee . | . . . Uniques/NPCs Destroyed . | . . . Combat | -11 -10 -9 -------- Run | Jun Mat Mat Damage Taken 457 | . 33 424 Core 414 | . 12 402 Absorbed by Shields . | . . . Core Remaining (%) 97 | 100 95 . Volleys Fired . | . . . Largest . | . . . Hottest . | . . . Shots Fired . | . . . Gun . | . . . Cannon . | . . . Launcher . | . . . Special . | . . . Kinetic . | . . . Thermal . | . . . Explosive . | . . . Electromagnetic . | . . . Robot Hit Streak . | . . . Robot Miss Streak . | . . . Penetration Max . | . . . Secondary Targets . | . . . Shots Hit Robots . | . . . Core Hits 2 | . . 2 Critical Kills . | . . . Critical Parts Destroyed . | . . . Critical Strikes . | . . . Melee Attacks . | . . . Impact . | . . . Slashing . | . . . Piercing . | . . . Sneak Attacks . | . . . Combat Hostiles . | . . . Follow-up Attacks . | . . . Damage Inflicted 62 | . . 62 Guns . | . . . Cannons . | . . . Explosions . | . . . Melee . | . . . Ramming 62 | . . 62 Kinetic . | . . . Thermal . | . . . Explosive . | . . . Electromagnetic . | . . . Impact . | . . . Slashing . | . . . Piercing . | . . . Highest Corruption 2 | . . 2 Average Corruption 2 | . . 2 Corruption Purged . | . . . Corruption Blocked . | . . . Overload Shots . | . . . Overflow Damage . | . . . Projectiles . | . . . Explosions . | . . . Melee . | . . . Knockbacks . | . . . Impact . | . . . Kinetic . | . . . Secondary . | . . . Self-Inflicted Damage 27 | . . 27 Shots . | . . . Rammed 17 | . . 17 Targets Rammed 17 | . . 17 Kicked . | . . . Crushed . | . . . Highest Temperature . | . . . Average Temperature . | . . . Received Heat Transfer 129 | . 18 111 Siege Activations . | . . . Robots Corrupted . | . . . Combat Hostiles . | . . . Parts Fried . | . . . Impact Corruptions . | . . . Robots Melted . | . . . Combat Hostiles . | . . . Parts Melted . | . . . Heat Transferred . | . . . Parts Sabotaged . | . . . Parts Stolen . | . . . Parts Stripped . | . . . Power Chain Reactions . | . . . Missiles Intercepted . | . . . Alert | -11 -10 -9 ------- Run | Jun Mat Mat Peak Influence 117 | . 45 117 Initial 18 | . . 18 Average 31 | . 20 37 Maximum Alert Level . | . . . Low Security (%) 100 | 100 100 100 Level 1 . | . . . Level 2 . | . . . Level 3 . | . . . Level 4 . | . . . Level 5 . | . . . High Security . | . . . Max Security . | . . . Squads Dispatched 4 | . 1 3 Investigation 1 | . . 1 Extermination . | . . . Reinforcement 3 | . 1 2 Assault . | . . . Garrison . | . . . Intercept . | . . . Searches Triggered . | . . . Construction Impeded . | . . . Haulers Reinforced . | . . . Active Scanning Responses . | . . . Cargo Convoy Interrupts . | . . . Stealth | -11 -10 -9 --------- Run | Jun Mat Mat Distress Signals 2 | . . 2 Communications Jammed . | . . . Distress Signals . | . . . Times Spotted 21 | . 6 15 Peak Tracking Total 11 | . 5 11 Tactical Retreats 2 | . . 2 Traps | -11 -10 -9 ------- Run | Jun Mat Mat Traps Triggered 1 | . . 1 Indirectly . | . . . Trap Hack Attempts . | . . . Triggered . | . . . Disarmed . | . . . Reprogrammed . | . . . Reused . | . . . Traps Extracted . | . . . Installed . | . . . Triggered . | . . . Machines | -11 -10 -9 ---------- Run | Jun Mat Mat Machines Disabled . | . . . Max in Single Turn . | . . . Machines Repaired . | . . . Machines Sabotaged . | . . . Overloaded Fab Kills . | . . . Hacking | -11 -10 -9 --------- Run | Jun Mat Mat Machines Accessed 2 | . . 2 Terminals 2 | . . 2 Fabricators . | . . . Repair Stations . | . . . Recycling Units . | . . . Scanalyzers . | . . . Garrison Access . | . . . Total Hacks 2 | . . 2 Successful 2 | . . 2 Failed . | . . . Catastrophic . | . . . Database Lockouts . | . . . Manual . | . . . Terminals 2 | . . 2 Fabricators . | . . . Repair Stations . | . . . Recycling Units . | . . . Scanalyzers . | . . . Garrison Access . | . . . Terminal Hacks 2 | . . 2 Emergency Access Points 2 | . . 2 Fabricator Hacks . | . . . Repair Station Hacks . | . . . Recycling Unit Hacks . | . . . Scanalyzer . | . . . Garrison Access Hacks . | . . . Unauthorized Hacks . | . . . Terminals . | . . . Fabricators . | . . . Repair Stations . | . . . Recycling Units . | . . . Scanalyzers . | . . . Garrison Access . | . . . Data Cores Recovered . | . . . Used . | . . . Hacking Detections . | . . . Full Trace Events . | . . . Feedback Events . | . . . Feedback Blocked . | . . . Robot Schematics Acquired . | . . . Robots Built . | . . . Authchips . | . . . Time . | . . . Total Robot Build Rating . | . . . Part Schematics Acquired . | . . . Parts Built . | . . . Authchips . | . . . Time . | . . . Total Part Build Rating . | . . . Parts Repaired . | . . . Time . | . . . Parts Recycled . | . . . Recycled Matter . | . . . Retrieved Matter . | . . . Retrieved Components . | . . . Parts Scanalyzed . | . . . Part Schematics Acquired . | . . . Parts Damaged . | . . . Bothacking | -11 -10 -9 ------------ Run | Jun Mat Mat Used RIF Installer . | . . . Robots Hacked . | . . . Non-combat . | . . . Combat . | . . . Robot Hacks Applied . | . . . Relay Couplers Released . | . . . Fabnet Peak Effective % . | . . . Robots Rewired . | . . . Allies Hacked . | . . . Hacks Repelled . | . . . Allies | -11 -10 -9 -------- Run | Jun Mat Mat Total Allies . | . . . Largest Group . | . . . Highest-Rated Group . | . . . Highest-Rated Ally . | . . . Total Orders . | . . . Ally Attacks . | . . . Total Damage . | . . . Kills . | . . . Allies Corrupted . | . . . Allies Melted . | . . . Intel | -11 -10 -9 ------- Run | Jun Mat Mat Robot Analysis Total . | . . . Derelict Logs Recovered . | . . . Drone Launches . | . . . Drone Recoveries . | . . . Exploration | -11 -10 -9 ------------- Run | Jun Mat Mat Turns Passed 220 | 12 56 152 Spaces Moved 393 | 22 111 260 Core 393 | 22 111 260 Treads . | . . . Legs . | . . . Wheels . | . . . Hover . | . . . Flight . | . . . Fastest Speed 50 | 50 50 50 Average Speed 50 | 50 50 50 Slowest Speed 100 | 50 50 100 Overloaded Moves . | . . . Propulsion Burnouts . | . . . Robots Hopped . | . . . Cave-ins Triggered . | . . . Exploration Rate (%) 19 | 4 24 30 Regions Visited 2 Branch Regions . Pre-discovered Areas . | . . . Known Exits Taken . | . . . Unknown Exits Taken 2 | 1 1 . Scrap Searched . | . . . Spaces Dug . | . . . Terrain Destroyed . | . . . Melee . | . . . Projectile . | . . . AOE . | . . . Terrain Rammed . | . . . Walls Destroyed . | . . . Machines Disabled . | . . . Actions | -11 -10 -9 --------- Run | Jun Mat Mat Total 413 | 22 110 281 Wait . | . . . Move 391 | 21 110 260 Hop . | . . . Pick Up . | . . . Fast Attach 3 | 1 . 2 Attach . | . . . Detach . | . . . Swap . | . . . Drop 2 | . . 2 Fire . | . . . Melee . | . . . Ram 17 | . . 17 Kick . | . . . Crush . | . . . Escape Stasis . | . . . Rewire . | . . . Trap . | . . . Miscellaneous . | . . . Route ------- -11/Junkyard -10/Materials -9/Materials History --------- Turn | Location | Event 6 | -11/Junkyard | Discovered new exit (range 15) 13 | -11/Junkyard | Entered Materials 42 | -10/Materials | Discovered new exit (range 16) 61 | -10/Materials | Discovered new exit (range 13) 69 | -10/Materials | Entered another Materials area 69 | -9/Materials | Evolved 2 slots: Propulsion x1, Utility x1 149 | -9/Materials | Discovered new exit (range 6) 189 | -9/Materials | Core integrity fell below 50% 212 | -9/Materials | Core integrity fell below 20% 221 | -9/Materials | Destroyed by S-10 Pest with Light Assault Rifle Last Messages --------------- (93,38) Map updated. 00172_ ALERT: Hostiles spotted, dispatching reinforcements to Terminal M006. 00172_ Slammed into Y-45 Defender. 00178_ K-01 Serf collects debris. 00180_ Slammed into S-10 Pest. 00186_ Slammed into K-01 Serf. 00188_ Slammed into G-34 Mercenary. 00190_ Slammed into K-01 Serf. 00190_ Destabilizing: Core damaged (-12). 00192_ Slammed into K-01 Serf. 00199_ O-16 Technician sends out distress signal. 00199_ O-16 Technician: "IFF HANDSHAKE FAILED. SECURING TERMINAL." 00199_ W-16 Scout sends out distress signal. 00201_ ALERT: Hostiles spotted, dispatching reinforcements to Terminal M009. 00204_ Slammed into U-05 Engineer. 00207_ Slammed into S-10 Pest. 00209_ Destabilizing: System corrupted (+2). 00210_ Slammed into S-10 Pest. 00213_ Slammed into B-36 Bruiser. Map ----- +----------------------------------------------------+ | ??????????????????????????????????????????????# | | ??????????????????????????????????????????????# | | ??????????????????????????????????????????????# | | ??????????????????????????????????????????????# | | ????????????????????????????????????########### | | ?????????????????????????????????? | | ??????????????????????????????????????##### | | ?????????????????????????????????##???????# | | ????????????????????????????????## ######## " | | ????????????????????????????????# # | | ????????????????????????????????# """" # | | ????????????????????????????????# ""S"" # | | ????????????????????????????????# "" "" + | | ????????????????????????????????# # | | ????????????????????????????????# ###### | | ????????????????????????????????# #????# | | ????????????????????????????????# #????# | | ????????????????????????????????#######/###????# | | ??????????????????????????????????????# #??????# | | ??????????????????????????????????????# #??????# | | ???????????????????????????##+##?????## ######## | | ???????????????????????????# #?????# | | ???????????????????????????# #?????# | | ???????????????############# #?????# | | ???????????????# ####??# ###+#### | | ???????????????# @ ##T#### # ?# | | ???????????????# ssg # """ # | | ???????????????# rgb # """ ## | | ???????????????# wu""""" # """ #? | | ???????????????# """"""""" ### ## #? | | ?????????????? u """ """o T## ## """ #? | | ?????????????####### ### ## """ #? | | ???????????????????+ #?# ##????? #? | | ???????????????????# ### #?# #?????? #? | | ???????????????????# ? ??###+######?# #????????? | | ???????????????????##? ???????????????# #????????? | | ??????????????????????????????????##### #????????? | | ??????????????????????????????????+ #????????? | | ??????????????????????????????????##### #????????? | | ??????????????????????????????????????# #????????? | | ??????????????????????????????????????# #????????? | | ??????????????????????????????????????# #????????? | | ??????????????????????????????????????# #????????? | | ??????????????????????????????????????# #????????? | | ????????????????????????????#?????????# #????????? | | ????????????????????????????# ??????## #????????? | | ????????????????????????????# ????+ #????????? | | ????????????????????????????# ??# #????????? | | ????????????????????????????+ # #????????? | | ????????????????????????????# + #????????? | +----------------------------------------------------+ Best States ------------- Heat Dissipation 28 Energy Generation 10 Energy Capacity 125 Matter Stores 200 Matter Capacity 300 Sight Range 16 Terrain Scan Density 10 Evasion (%) 50 Item Schematics ----------------- None Robot Schematics ------------------ None Fabricated ------------ Nothing Alien Tech Used ----------------- None Achievements -------------- None Challenges ------------ Fragile Parts Gauntlet No Salvage Pure Core Scavenger Simple Hacker Unstable Evolution Game ------ Seed ForceNullAnalyzer Manual? 0 Play Time 00:04:25 Cumulative 97.5 hours Start 2023.04.13 @ 09:31:25 End 2023.04.13 @ 09:33:59 Sessions 1 Manual Loads 0 Difficulty Rogue Special Mode None Game No. 220 Rogue 220 Adventurer 0 Explorer 0 Win Type - Total 3 Types 3/0/0/0/0/0/0/0/0 Lore% 55 Gallery% 57 Achievement% 48 Wizard Run 0 Options --------- ASCII 0 Keyboard 0 Movement Numpad Keybinds 0 Fullscreen 1 Font 12/Smallcaps Map View 83x54 Tactical HUD 1 Map Filters NONE Filters NONE Steam 1 RUN: b8144d7c-1606-4238-9348-785d27967b4d